fUSD/lending_fUSD_20240825
["ID","MTS","AMOUNT","RATE_DAILY","PERIOD"]
[335904151,1724580655443,-500.0,0.00010989,2]
[335904152,1724580655454,-954.04,0.00010989,2]
[335904153,1724580655464,-954.04,0.00010989,2]
[335904154,1724580655474,-5220.21,0.00010989,2]
[335904155,1724580655484,-5220.21,0.00010989,2]
[335904156,1724580655495,-5220.21,0.00010989,2]
[335904157,1724580655506,-530.23,0.00010989,2]
[335904158,1724580655516,-530.23,0.00010989,2]
[335904159,1724580655526,-988.25,0.00010989,2]
[335904160,1724580655536,-988.25,0.00010989,2]
[335904161,1724580655546,-884.05,0.00010989,2]
[335904162,1724580655557,-884.05,0.00010989,2]
[335904163,1724580655566,-601.49,0.00010989,2]
[335904164,1724580655576,-642.21,0.00010989,2]
[335904165,1724580655585,-642.21,0.00010989,2]
[335904166,1724580655595,-642.21,0.00010989,2]
[335904167,1724580655605,-1846.94,0.00010989,2]
[335904168,1724580655614,-1846.94,0.00010989,2]
[335904169,1724580655624,-718.69,0.00010989,2]
[335904170,1724580655634,-693.24,0.00010989,2]
[335904171,1724580655644,-693.24,0.00010989,2]
[335904172,1724580655654,-1129.64,0.00010989,2]
[335904173,1724580655663,-500.0,0.00010989,2]
[335904174,1724580655673,-1129.64,0.00010989,2]
[335904175,1724580655683,-500.0,0.00010989,2]
[335904176,1724580655692,-500.0,0.00010989,2]
[335904177,1724580655706,-500.0,0.00010989,2]
[335904178,1724580655719,-153.83257683,0.00010989,2]
[335904179,1724580655729,-500.0,0.00010989,2]
[335904180,1724580655739,-500.0,0.00010989,2]
[335904181,1724580655748,-500.0,0.00010989,2]
[335904182,1724580655758,-500.0,0.00010989,2]
[335904183,1724580655767,-500.0,0.00010989,2]
[335904184,1724580655776,-1088.19,0.00010989,2]
[335904185,1724580655786,-500.0,0.00010989,2]
[335904186,1724580655795,-500.0,0.00010989,2]
[335904187,1724580655805,-368.8,0.00010989,2]
[335904188,1724580655815,-1003.77,0.00010989,2]
[335904189,1724580655824,-992.67,0.00010989,2]
[335904190,1724580655834,-500.0,0.00010989,2]
[335904191,1724580655844,-992.67,0.00010989,2]
[335904192,1724580655854,-500.0,0.00010989,2]
[335904193,1724580655864,-900.2,0.00010989,2]
[335904194,1724580655874,-900.2,0.00010989,2]
[335904195,1724580655883,-1654.87,0.00010989,2]
[335904196,1724580655893,-500.0,0.00010989,2]
[335904197,1724580655903,-500.0,0.00010989,2]
[335904198,1724580655912,-500.0,0.00010989,2]
[335904199,1724580655921,-500.0,0.00010989,2]
[335904200,1724580655931,-500.0,0.00010989,2]
[335904201,1724580655940,-500.0,0.00010989,2]
[335904202,1724580655950,-500.0,0.00010989,2]
[335904203,1724580655963,-1119.43,0.00010989,2]
[335904204,1724580655973,-1119.43,0.00010989,2]
[335904205,1724580655982,-500.0,0.00010989,2]
[335904206,1724580655991,-500.0,0.00010989,2]
[335904207,1724580656001,-3332.43,0.00010989,2]
[335904208,1724580656010,-500.0,0.00010989,2]
[335904209,1724580656019,-3332.43,0.00010989,2]
[335904210,1724580656028,-2337.78,0.00010989,2]
[335904211,1724580656038,-500.0,0.00010989,2]
[335904212,1724580656047,-500.0,0.00010989,2]
[335904213,1724580656056,-500.0,0.00010989,2]
[335904214,1724580656066,-500.0,0.00010989,2]
[335904215,1724580656077,-500.0,0.00010989,2]
[335904216,1724580656087,-500.0,0.00010989,2]
[335904217,1724580656096,-151.0,0.00010989,2]
[335904218,1724580656105,-151.0,0.00010989,2]
[335904219,1724580656114,-151.0,0.00010989,2]
[335904220,1724580656125,-567.94,0.00010989,2]
[335904221,1724580656134,-567.94,0.00010989,2]
[335904222,1724580656143,-151.0,0.00010989,2]
[335904223,1724580656153,-151.0,0.00010989,2]
[335904224,1724580656163,-151.0,0.00010989,2]
[335904225,1724580656172,-1190.77,0.00010989,2]
[335904226,1724580656181,-500.0,0.00010989,2]
[335904227,1724580656190,-792.52,0.00010989,2]
[335904228,1724580656199,-500.0,0.00010989,2]
[335904229,1724580656213,-500.0,0.00010989,2]
[335904230,1724580656222,-500.0,0.00010989,2]
[335904231,1724580656231,-1203.13,0.00010989,2]
[335904232,1724580656240,-500.0,0.00010989,2]
[335904233,1724580656250,-500.0,0.00010989,2]
[335904234,1724580656259,-500.0,0.00010989,2]
[335904235,1724580656268,-500.0,0.00010989,2]
[335904236,1724580656278,-500.0,0.00010989,2]
[335904237,1724580656287,-500.0,0.00010989,2]
[335904238,1724580656296,-500.0,0.00010989,2]
[335904239,1724580656307,-500.0,0.00010989,2]
[335904240,1724580656316,-500.0,0.00010989,2]
[335904241,1724580656325,-1636.67,0.00010989,2]
[335904242,1724580656334,-880.18,0.00010989,2]
[335904243,1724580656343,-500.0,0.00010989,2]
[335904244,1724580656353,-500.0,0.00010989,2]
[335904245,1724580656362,-1825.83,0.00010989,2]
[335904246,1724580656374,-500.0,0.00010989,2]
[335904247,1724580656384,-500.0,0.00010989,2]
[335904248,1724580656394,-500.0,0.00010989,2]
[335904249,1724580656403,-608.46500648,0.00010989,2]
[335904250,1724580656412,-500.0,0.00010989,2]
[335904251,1724580656422,-500.0,0.00010989,2]
[335904252,1724580656431,-500.0,0.00010989,2]
[335904253,1724580656440,-500.0,0.00010989,2]
[335904254,1724580656449,-500.0,0.00010989,2]
[335904255,1724580656461,-500.0,0.00010989,2]
[335904256,1724580656471,-500.0,0.00010989,2]
[335904257,1724580656483,-500.0,0.00010989,2]
[335904258,1724580656493,-500.0,0.00010989,2]
[335904259,1724580656502,-992.22,0.00010989,2]
[335904260,1724580656511,-992.22,0.00010989,2]
[335904261,1724580656520,-660.97,0.00010989,2]
[335904262,1724580656530,-660.97,0.00010989,2]
[335904263,1724580656539,-1592.47,0.00010989,2]
[335904264,1724580656549,-500.0,0.00010989,2]
[335904265,1724580656558,-720.85,0.00010989,2]
[335904266,1724580656567,-720.85,0.00010989,2]
[335904267,1724580656576,-500.0,0.00010989,2]
[335904268,1724580656585,-642.74,0.00010989,2]
[335904269,1724580656594,-642.74,0.00010989,2]
[335904270,1724580656603,-500.0,0.00010989,2]
[335904271,1724580656611,-500.0,0.00010989,2]
[335904272,1724580656620,-500.0,0.00010989,2]
[335904273,1724580656630,-1194.72,0.00010989,2]
[335904274,1724580656639,-1194.72,0.00010989,2]
[335904275,1724580656648,-966.99,0.00010989,2]
[335904276,1724580656657,-966.99,0.00010989,2]
[335904277,1724580656666,-1293.96,0.00010989,2]
[335904278,1724580656675,-577.86,0.00010989,2]
[335904279,1724580656684,-577.86,0.00010989,2]
[335904280,1724580656693,-500.0,0.00010989,2]
[335904281,1724580656704,-500.0,0.00010989,2]
[335904282,1724580656713,-1423.25,0.00010989,2]
[335904283,1724580656723,-1423.25,0.00010989,2]
[335904284,1724580656732,-500.0,0.00010989,2]
[335904285,1724580656741,-500.0,0.00010989,2]
[335904286,1724580656750,-781.66,0.00010989,2]
[335904287,1724580656758,-500.0,0.00010989,2]
[335904288,1724580656768,-502.28463553,0.00010989,2]
[335904289,1724580656777,-1217.76,0.00010989,2]
[335904290,1724580656786,-3247.37,0.00010989,2]
[335904291,1724580656795,-762.67,0.00010989,2]
[335904292,1724580656804,-3247.37,0.00010989,2]
[335904293,1724580656814,-762.67,0.00010989,2]
[335904294,1724580656823,-153.92655447,0.00010989,2]
[335904295,1724580656832,-500.0,0.00010989,2]
[335904296,1724580656841,-500.0,0.00010989,2]
[335904297,1724580656850,-500.0,0.00010989,2]
[335904298,1724580656860,-500.0,0.00010989,2]
[335904299,1724580656869,-741.22,0.00010989,2]
[335904300,1724580656879,-1537.86,0.00010989,2]
[335904301,1724580656888,-1537.86,0.00010989,2]
[335904302,1724580656897,-500.0,0.00010989,2]
[335904303,1724580656906,-3145.43,0.00010989,2]
[335904304,1724580656916,-3145.43,0.00010989,2]
[335904305,1724580656925,-150.97647945,0.00010989,2]
[335904306,1724580656935,-695.47,0.00010989,2]
[335904307,1724580656944,-1648.84,0.00010989,2]
[335904308,1724580656956,-1648.84,0.00010989,2]
[335904309,1724580656966,-1145.28,0.00010989,2]
[335904310,1724580656975,-1145.28,0.00010989,2]
[335904311,1724580656984,-865.38,0.00010989,2]
[335904312,1724580656994,-865.38,0.00010989,2]
[335904313,1724580657003,-982.69,0.00010989,2]
[335904314,1724580657012,-982.69,0.00010989,2]
[335904315,1724580657021,-693.59,0.00010989,2]
[335904316,1724580657030,-1758.59,0.00010989,2]
[335904317,1724580657039,-1758.59,0.00010989,2]
[335904318,1724580657048,-997.48,0.00010989,2]
[335904319,1724580657057,-1709.74,0.00010989,2]
[335904320,1724580657066,-2969.51,0.00010989,2]
[335904321,1724580657078,-2969.51,0.00010989,2]
[335904322,1724580657087,-720.18,0.00010989,2]
[335904323,1724580657096,-1249.86,0.00010989,2]
[335904324,1724580657106,-1249.86,0.00010989,2]
[335904325,1724580657116,-3849.65,0.00010989,2]
[335904326,1724580657125,-3849.65,0.00010989,2]
[335904327,1724580657133,-1595.84,0.00010989,2]
[335904328,1724580657142,-1595.84,0.00010989,2]
[335904329,1724580657152,-714.29,0.00010989,2]
[335904330,1724580657161,-246.05015353,0.00010989,2]
[335904331,1724580657170,-823.24,0.00010989,2]
[335904332,1724580657179,-823.24,0.00010989,2]
[335904333,1724580657188,-922.95,0.00010989,2]
[335904334,1724580657197,-533.78,0.00010989,2]
[335904335,1724580657208,-533.78,0.00010989,2]
[335904336,1724580657217,-758.18,0.00010989,2]
[335904337,1724580657226,-291268.11494624,0.0001099,3]
[335904338,1724580657235,-72956.538699,0.0001099,2]
[335904339,1724580657245,-151.0,0.0001099,2]
[335904340,1724580657254,-265.103346,0.0001099,2]
[335904341,1724580657263,-217.131053,0.0001099,2]
[335904342,1724580657272,-217.131053,0.0001099,2]
[335904343,1724580657282,-151.0,0.0001099,2]
[335904344,1724580657291,-151.0,0.0001099,2]
[335904345,1724580657302,-151.0,0.0001099,2]
[335904346,1724580657312,-212.772476,0.0001099,2]
[335904347,1724580657321,-11101.206,0.0001099,2]
[335904348,1724580657331,-9281.35294349,0.00010993,2]
[335904349,1724580657340,-2905.53992152,0.00010993,2]
[335904350,1724580657350,-500.0,0.00010994,2]
[335904351,1724580657359,-500.0,0.00010994,2]
[335904352,1724580657369,-500.0,0.00010994,2]
[335904353,1724580657378,-500.0,0.00010994,2]
[335904354,1724580657387,-193.25311632,0.00010994,2]
[335904355,1724580657396,-500.0,0.00010994,2]
[335904356,1724580657405,-571.69,0.00010994,2]
[335904357,1724580657414,-500.0,0.00010994,2]
[335904358,1724580657423,-500.0,0.00010994,2]
[335904359,1724580657432,-500.0,0.00010994,2]
[335904360,1724580657441,-1382.24,0.00010994,2]
[335904361,1724580657450,-533.61,0.00010994,2]
[335904362,1724580657460,-1002.6,0.00010994,2]
[335904363,1724580657469,-442.04265347,0.00010994,2]
[335904364,1724580657478,-822.57,0.00010994,2]
[335904365,1724580657487,-748.79,0.00010994,2]
[335904366,1724580657497,-500.0,0.00010994,2]
[335904367,1724580657506,-500.0,0.00010994,2]
[335904368,1724580657516,-495.07640771,0.00010994,2]
[335904369,1724580657525,-500.0,0.00010994,2]
[335904370,1724580657535,-500.0,0.00010994,2]
[335904371,1724580657544,-723.67,0.00010994,2]
[335904372,1724580657553,-500.0,0.00010994,2]
[335904373,1724580657689,-500.0,0.00010994,2]
[335904374,1724580657699,-500.0,0.00010994,2]
[335904375,1724580657709,-2485.05,0.00010994,2]
[335904376,1724580657719,-500.0,0.00010994,2]
[335904377,1724580657729,-500.0,0.00010994,2]
[335904378,1724580657742,-500.0,0.00010994,2]
[335904379,1724580657751,-500.0,0.00010994,2]
[335904380,1724580657760,-603.22,0.00010994,2]
[335904381,1724580657770,-500.0,0.00010994,2]
[335904382,1724580657779,-308.12,0.00010994,2]
[335904383,1724580657788,-614.22,0.00010994,2]
[335904384,1724580657797,-500.0,0.00010994,2]
[335904385,1724580657807,-500.0,0.00010994,2]
[335904386,1724580657817,-832.4,0.00010994,2]
[335904387,1724580657826,-500.0,0.00010994,2]
[335904388,1724580657835,-5000.0,0.00010994,2]
[335904389,1724580657845,-500.0,0.00010994,2]
[335904390,1724580657854,-500.0,0.00010994,2]
[335904391,1724580657863,-500.0,0.00010994,2]
[335904392,1724580657872,-500.0,0.00010994,2]
[335904393,1724580657882,-500.0,0.00010994,2]
[335904394,1724580657892,-500.0,0.00010994,2]
[335904395,1724580657901,-500.0,0.00010994,2]
[335904396,1724580657911,-500.0,0.00010994,2]
[335904397,1724580657920,-500.0,0.00010994,2]
[335904398,1724580657930,-1139.99,0.00010994,2]
[335904399,1724580657939,-595.81,0.00010994,2]
[335904400,1724580657949,-500.0,0.00010994,2]
[335904401,1724580657959,-500.0,0.00010994,2]
[335904402,1724580657968,-500.0,0.00010994,2]
[335904403,1724580657978,-870.38,0.00010994,2]
[335904404,1724580657987,-500.0,0.00010994,2]
[335904405,1724580657997,-553.29,0.00010994,2]
[335904406,1724580658006,-1371.51,0.00010994,2]
[335904407,1724580658016,-623.86,0.00010994,2]
[335904408,1724580658025,-500.0,0.00010994,2]
[335904409,1724580658035,-151.0,0.00010994,2]
[335904410,1724580658044,-500.0,0.00010994,2]
[335904411,1724580658053,-500.0,0.00010994,2]
[335904412,1724580658063,-11357.84,0.00010994,2]
[335904413,1724580658073,-500.0,0.00010994,2]
[335904414,1724580658087,-530.23,0.00010994,2]
[335904415,1724580658097,-988.25,0.00010994,2]
[335904416,1724580658106,-601.49,0.00010994,2]
[335904417,1724580658117,-718.69,0.00010994,2]
[335904418,1724580658126,-497.01176865,0.00010994,2]
[335904419,1724580658137,-1129.64,0.00010994,2]
[335904420,1724580658146,-1088.19,0.00010994,2]
[335904421,1724580658155,-1003.77,0.00010994,2]
[335904422,1724580658164,-500.0,0.00010994,2]
[335904423,1724580658175,-1654.87,0.00010994,2]
[335904424,1724580658184,-322.17021052,0.00010994,2]
[335904425,1724580658194,-500.0,0.00010994,2]
[335904426,1724580658203,-500.0,0.00010994,2]
[335904427,1724580658214,-3332.43,0.00010994,2]
[335904428,1724580658223,-2337.78,0.00010994,2]
[335904429,1724580658233,-500.0,0.00010994,2]
[335904430,1724580658242,-500.0,0.00010994,2]
[335904431,1724580658251,-500.0,0.00010994,2]
[335904432,1724580658261,-151.0,0.00010994,2]
[335904433,1724580658271,-1190.77,0.00010994,2]
[335904434,1724580658280,-500.0,0.00010994,2]
[335904435,1724580658290,-792.52,0.00010994,2]
[335904436,1724580658300,-1203.13,0.00010994,2]
[335904437,1724580658310,-500.0,0.00010994,2]
[335904438,1724580658319,-1636.67,0.00010994,2]
[335904439,1724580658329,-880.18,0.00010994,2]
[335904440,1724580658339,-196.19,0.00010994,2]
[335904441,1724580658349,-1825.83,0.00010994,2]
[335904442,1724580658359,-500.0,0.00010994,2]
[335904443,1724580658369,-410.35,0.00010994,2]
[335904444,1724580658378,-1592.47,0.00010994,2]
[335904445,1724580658388,-500.0,0.00010994,2]
[335904446,1724580658398,-720.85,0.00010994,2]
[335904447,1724580658408,-500.0,0.00010994,2]
[335904448,1724580658418,-500.0,0.00010994,2]
[335904449,1724580658428,-500.0,0.00010994,2]
[335904450,1724580658438,-1293.96,0.00010994,2]
[335904451,1724580658447,-500.0,0.00010994,2]
[335904452,1724580658458,-500.0,0.00010994,2]
[335904453,1724580658471,-781.66,0.00010994,2]
[335904454,1724580658481,-1217.76,0.00010994,2]
[335904455,1724580658491,-3247.37,0.00010994,2]
[335904456,1724580658501,-500.0,0.00010994,2]
[335904457,1724580658511,-741.22,0.00010994,2]
[335904458,1724580658520,-1537.86,0.00010994,2]
[335904459,1724580658530,-500.0,0.00010994,2]
[335904460,1724580658539,-695.47,0.00010994,2]
[335904461,1724580658549,-1648.84,0.00010994,2]
[335904462,1724580658558,-1145.28,0.00010994,2]
[335904463,1724580658570,-693.59,0.00010994,2]
[335904464,1724580658580,-1758.59,0.00010994,2]
[335904465,1724580658589,-997.48,0.00010994,2]
[335904466,1724580658598,-1709.74,0.00010994,2]
[335904467,1724580658607,-720.18,0.00010994,2]
[335904468,1724580658617,-3849.65,0.00010994,2]
[335904469,1724580658627,-714.29,0.00010994,2]
[335904470,1724580658636,-823.24,0.00010994,2]
[335904471,1724580658646,-922.95,0.00010994,2]
[335904472,1724580658656,-533.78,0.00010994,2]
[335904473,1724580658665,-758.18,0.00010994,2]
[335904474,1724580658677,-2905.53992152,0.00010994,2]
[335904475,1724580658688,-490.75647812,0.00010995,2]
[335904476,1724580658698,-151.0,0.00010995,2]
[335904477,1724580658709,-500.0,0.00010995,2]
[335904478,1724580658719,-1200.33,0.00010995,2]
[335904479,1724580658730,-217.131053,0.00010995,2]
[335904480,1724580658739,-217.131053,0.00010995,2]
[335904481,1724580658750,-442.2384783,0.00010995,2]
[335904482,1724580658759,-500.0,0.00010995,2]
[335904483,1724580658769,-151.0,0.00010995,2]
[335904484,1724580658778,-500.0,0.00010995,2]
[335904485,1724580658788,-500.0,0.00010995,2]
[335904486,1724580658797,-664.63,0.00010995,2]
[335904487,1724580658807,-538.48,0.00010995,2]
[335904488,1724580658817,-514.94,0.00010995,2]
[335904489,1724580658826,-500.0,0.00010995,2]
[335904490,1724580658836,-500.0,0.00010995,2]
[335904491,1724580658846,-500.0,0.00010995,2]
[335904492,1724580658855,-634.52,0.00010995,2]
[335904493,1724580658865,-500.0,0.00010995,2]
[335904494,1724580658874,-500.0,0.00010995,2]
[335904495,1724580658884,-500.0,0.00010995,2]
[335904496,1724580658894,-500.0,0.00010995,2]
[335904497,1724580658904,-500.0,0.00010995,2]
[335904498,1724580658913,-500.0,0.00010995,2]
[335904499,1724580658922,-500.0,0.00010995,2]
[335904500,1724580658932,-500.0,0.00010995,2]
[335904501,1724580658943,-500.0,0.00010995,2]
[335904502,1724580658952,-500.0,0.00010995,2]
[335904503,1724580658964,-500.0,0.00010995,2]
[335904504,1724580658974,-500.0,0.00010995,2]
[335904505,1724580658984,-777.65,0.00010995,2]
[335904506,1724580658994,-500.0,0.00010995,2]
[335904507,1724580659004,-500.0,0.00010995,2]
[335904508,1724580659013,-500.0,0.00010995,2]
[335904509,1724580659022,-500.0,0.00010995,2]
[335904510,1724580659032,-500.0,0.00010995,2]
[335904511,1724580659041,-500.0,0.00010995,2]
[335904512,1724580659051,-1757.5,0.00010995,2]
[335904513,1724580659060,-2167.53,0.00010995,2]
[335904514,1724580659074,-2052.47,0.00010995,2]
[335904515,1724580659083,-500.0,0.00010995,2]
[335904516,1724580659092,-500.0,0.00010995,2]
[335904517,1724580659102,-500.0,0.00010995,2]
[335904518,1724580659112,-505.61,0.00010995,2]
[335904519,1724580659122,-500.0,0.00010995,2]
[335904520,1724580659131,-500.0,0.00010995,2]
[335904521,1724580659140,-500.0,0.00010995,2]
[335904522,1724580659150,-1007.1,0.00010995,2]
[335904523,1724580659160,-1139.99,0.00010995,2]
[335904524,1724580659169,-1526.56,0.00010995,2]
[335904525,1724580659178,-595.81,0.00010995,2]
[335904526,1724580659187,-3917.05,0.00010995,2]
[335904527,1724580659197,-3007.5,0.00010995,2]
[335904528,1724580659208,-1619.27,0.00010995,2]
[335904529,1724580659217,-988.5,0.00010995,2]
[335904530,1724580659227,-500.0,0.00010995,2]
[335904531,1724580659236,-500.0,0.00010995,2]
[335904532,1724580659245,-500.0,0.00010995,2]
[335904533,1724580659255,-500.0,0.00010995,2]
[335904534,1724580659264,-870.38,0.00010995,2]
[335904535,1724580659273,-500.0,0.00010995,2]
[335904536,1724580659282,-500.0,0.00010995,2]
[335904537,1724580659291,-1367.97,0.00010995,2]
[335904538,1724580659301,-790.89,0.00010995,2]
[335904539,1724580659310,-500.0,0.00010995,2]
[335904540,1724580659319,-1371.51,0.00010995,2]
[335904541,1724580659328,-500.0,0.00010995,2]
[335904542,1724580659337,-1239.41,0.00010995,2]
[335904543,1724580659347,-1482.36,0.00010995,2]
[335904544,1724580659356,-211.782552,0.00010995,2]
[335904545,1724580659365,-11357.84,0.00010995,2]
[335904546,1724580659376,-500.0,0.00010995,2]
[335904547,1724580659386,-1456.94,0.00010995,2]
[335904548,1724580659395,-500.0,0.00010995,2]
[335904549,1724580659405,-954.04,0.00010995,2]
[335904550,1724580659414,-5220.21,0.00010995,2]
[335904551,1724580659423,-530.23,0.00010995,2]
[335904552,1724580659432,-988.25,0.00010995,2]
[335904553,1724580659441,-884.05,0.00010995,2]
[335904554,1724580659450,-642.21,0.00010995,2]
[335904555,1724580659462,-1846.94,0.00010995,2]
[335904556,1724580659471,-693.24,0.00010995,2]
[335904557,1724580659480,-1129.64,0.00010995,2]
[335904558,1724580659489,-500.0,0.00010995,2]
[335904559,1724580659499,-500.0,0.00010995,2]
[335904560,1724580659508,-500.0,0.00010995,2]
[335904561,1724580659517,-1088.19,0.00010995,2]
[335904562,1724580659527,-1088.19,0.00010995,2]
[335904563,1724580659536,-1003.77,0.00010995,2]
[335904564,1724580659546,-1003.77,0.00010995,2]
[335904565,1724580659555,-500.0,0.00010995,2]
[335904566,1724580659564,-992.67,0.00010995,2]
[335904567,1724580659574,-900.2,0.00010995,2]
[335904568,1724580659583,-1654.87,0.00010995,2]
[335904569,1724580659592,-1654.87,0.00010995,2]
[335904570,1724580659601,-500.0,0.00010995,2]
[335904571,1724580659610,-500.0,0.00010995,2]
[335904572,1724580659620,-1119.43,0.00010995,2]
[335904573,1724580659629,-500.0,0.00010995,2]
[335904574,1724580659638,-3332.43,0.00010995,2]
[335904575,1724580659647,-2337.78,0.00010995,2]
[335904576,1724580659656,-500.0,0.00010995,2]
[335904577,1724580659665,-2337.78,0.00010995,2]
[335904578,1724580659675,-500.0,0.00010995,2]
[335904579,1724580659684,-151.0,0.00010995,2]
[335904580,1724580659693,-567.94,0.00010995,2]
[335904581,1724580659702,-1190.77,0.00010995,2]
[335904582,1724580659715,-1190.77,0.00010995,2]
[335904583,1724580659724,-792.52,0.00010995,2]
[335904584,1724580659733,-792.52,0.00010995,2]
[335904585,1724580659742,-500.0,0.00010995,2]
[335904586,1724580659752,-1203.13,0.00010995,2]
[335904587,1724580659761,-1203.13,0.00010995,2]
[335904588,1724580659770,-500.0,0.00010995,2]
[335904589,1724580659779,-500.0,0.00010995,2]
[335904590,1724580659789,-500.0,0.00010995,2]
[335904591,1724580659799,-500.0,0.00010995,2]
[335904592,1724580659808,-1636.67,0.00010995,2]
[335904593,1724580659818,-1636.67,0.00010995,2]
[335904594,1724580659827,-1825.83,0.00010995,2]
[335904595,1724580659836,-1825.83,0.00010995,2]
[335904596,1724580659845,-442.8538619,0.00010995,2]
[335904597,1724580659854,-500.0,0.00010995,2]
[335904598,1724580659863,-500.0,0.00010995,2]
[335904599,1724580659873,-500.0,0.00010995,2]
[335904600,1724580659882,-500.0,0.00010995,2]
[335904601,1724580659891,-500.0,0.00010995,2]
[335904602,1724580659900,-992.22,0.00010995,2]
[335904603,1724580659909,-660.97,0.00010995,2]
[335904604,1724580659919,-1592.47,0.00010995,2]
[335904605,1724580659928,-1592.47,0.00010995,2]
[335904606,1724580659937,-500.0,0.00010995,2]
[335904607,1724580659947,-500.0,0.00010995,2]
[335904608,1724580659958,-720.85,0.00010995,2]
[335904609,1724580659967,-500.0,0.00010995,2]
[335904610,1724580659975,-500.0,0.00010995,2]
[335904611,1724580659985,-642.74,0.00010995,2]
[335904612,1724580659994,-500.0,0.00010995,2]
[335904613,1724580660005,-1194.72,0.00010995,2]
[335904614,1724580660015,-966.99,0.00010995,2]
[335904615,1724580660025,-1293.96,0.00010995,2]
[335904616,1724580660034,-1293.96,0.00010995,2]
[335904617,1724580660044,-577.86,0.00010995,2]
[335904618,1724580660053,-500.0,0.00010995,2]
[335904619,1724580660063,-1423.25,0.00010995,2]
[335904620,1724580660077,-500.0,0.00010995,2]
[335904621,1724580660086,-781.66,0.00010995,2]
[335904622,1724580660095,-781.66,0.00010995,2]
[335904623,1724580660105,-762.67,0.00010995,2]
[335904624,1724580660114,-3247.37,0.00010995,2]
[335904625,1724580660125,-500.0,0.00010995,2]
[335904626,1724580660134,-500.0,0.00010995,2]
[335904627,1724580660143,-741.22,0.00010995,2]
[335904628,1724580660153,-741.22,0.00010995,2]
[335904629,1724580660163,-1537.86,0.00010995,2]
[335904630,1724580660173,-3145.43,0.00010995,2]
[335904631,1724580660182,-1648.84,0.00010995,2]
[335904632,1724580660192,-1145.28,0.00010995,2]
[335904633,1724580660201,-865.38,0.00010995,2]
[335904634,1724580660212,-982.69,0.00010995,2]
[335904635,1724580660221,-693.59,0.00010995,2]
[335904636,1724580660230,-693.59,0.00010995,2]
[335904637,1724580660239,-1758.59,0.00010995,2]
[335904638,1724580660248,-1758.59,0.00010995,2]
[335904639,1724580660365,-2969.51,0.00010995,2]
[335904640,1724580660387,-1249.86,0.00010995,2]
[335904641,1724580660397,-3849.65,0.00010995,2]
[335904642,1724580660407,-1595.84,0.00010995,2]
[335904643,1724580660416,-714.29,0.00010995,2]
[335904644,1724580660425,-714.29,0.00010995,2]
[335904645,1724580660434,-823.24,0.00010995,2]
[335904646,1724580660444,-922.95,0.00010995,2]
[335904647,1724580660453,-922.95,0.00010995,2]
[335904648,1724580660463,-533.78,0.00010995,2]
[335904649,1724580660472,-533.78,0.00010995,2]
[335904650,1724580660482,-14527.6996076,0.00010995,2]